fUSD/lending_fUSD_20250125
["ID","MTS","AMOUNT","RATE_DAILY","PERIOD"]
[350367143,1737815442298,-500.0,0.00016438,2]
[350367144,1737815442307,-573.87,0.00016438,2]
[350367145,1737815442316,-500.0,0.00016438,2]
[350367146,1737815442325,-500.78446986,0.00016438,2]
[350367147,1737815442335,-500.0,0.00016438,2]
[350367148,1737815442344,-1073.09,0.00016438,2]
[350367149,1737815442353,-500.0,0.00016438,2]
[350367150,1737815442362,-1787.93,0.00016438,2]
[350367151,1737815442371,-500.0,0.00016438,2]
[350367152,1737815442382,-619.29,0.00016438,2]
[350367153,1737815442391,-500.0,0.00016438,2]
[350367154,1737815442400,-500.0,0.00016438,2]
[350367155,1737815442409,-634.75,0.00016438,2]
[350367156,1737815442418,-500.0,0.00016438,2]
[350367157,1737815442427,-500.37884033,0.00016438,2]
[350367158,1737815442436,-500.0,0.00016438,2]
[350367159,1737815442445,-1164.08,0.00016438,2]
[350367160,1737815442454,-500.0,0.00016438,2]
[350367161,1737815442463,-501.18576201,0.00016438,2]
[350367162,1737815442473,-500.0,0.00016438,2]
[350367163,1737815442482,-500.0,0.00016438,2]
[350367164,1737815442491,-500.0,0.00016438,2]
[350367165,1737815442500,-500.0,0.00016438,2]
[350367166,1737815442509,-622.31,0.00016438,2]
[350367167,1737815442519,-500.0,0.00016438,2]
[350367168,1737815442528,-1731.58,0.00016438,2]
[350367169,1737815442537,-500.0,0.00016438,2]
[350367170,1737815442547,-1257.87,0.00016438,2]
[350367171,1737815442556,-574.68,0.00016438,2]
[350367172,1737815442566,-500.0,0.00016438,2]
[350367173,1737815442575,-500.0,0.00016438,2]
[350367174,1737815442584,-500.0,0.00016438,2]
[350367175,1737815442594,-409.22747123,0.00016438,2]
[350367177,1737815442603,-168.75187208,0.00016438,2]
[350367179,1737815442613,-500.0,0.00016438,2]
[350367181,1737815442622,-898.6,0.00016438,2]
[350367183,1737815442631,-543.74,0.00016438,2]
[350367185,1737815442640,-500.0,0.00016438,2]
[350367186,1737815442649,-500.0,0.00016438,2]
[350367188,1737815442658,-500.0,0.00016438,2]
[350367190,1737815442667,-569.41578571,0.00016438,2]
[350367191,1737815442676,-879.75,0.00016438,2]
[350367192,1737815442685,-500.0,0.00016438,2]
[350367193,1737815442698,-500.0,0.00016438,2]
[350367194,1737815442707,-500.0,0.00016438,2]
[350367196,1737815442717,-500.0,0.00016438,2]
[350367198,1737815442726,-500.0,0.00016438,2]
[350367200,1737815442737,-500.0,0.00016438,2]
[350367202,1737815442746,-500.0,0.00016438,2]
[350367205,1737815442756,-843.9,0.00016438,2]
[350367207,1737815442765,-241.25149626,0.00016438,2]
[350367209,1737815442776,-500.0,0.00016438,2]
[350367211,1737815442785,-503.28339215,0.00016438,2]
[350367213,1737815442795,-1000.0,0.00016438,2]
[350367215,1737815442804,-500.0,0.00016438,2]
[350367217,1737815442813,-538.16714835,0.00016438,2]
[350367219,1737815442823,-2189.12,0.00016438,2]
[350367221,1737815442831,-542.2,0.00016438,2]
[350367223,1737815442841,-500.0,0.00016438,2]
[350367225,1737815442850,-705.19,0.00016438,2]
[350367227,1737815442859,-500.0,0.00016438,2]
[350367229,1737815442868,-500.0,0.00016438,2]
[350367231,1737815442877,-500.0,0.00016438,2]
[350367233,1737815442887,-500.0,0.00016438,2]
[350367235,1737815442896,-500.0,0.00016438,2]
[350367237,1737815442905,-500.0,0.00016438,2]
[350367239,1737815442914,-751.55,0.00016438,2]
[350367241,1737815442923,-500.0,0.00016438,2]
[350367243,1737815442932,-500.0,0.00016438,2]
[350367245,1737815442941,-500.0,0.00016438,2]
[350367247,1737815442951,-500.0,0.00016438,2]
[350367248,1737815442960,-2135.79,0.00016438,2]
[350367250,1737815442969,-500.0,0.00016438,2]
[350367253,1737815442978,-500.0,0.00016438,2]
[350367255,1737815442987,-500.0,0.00016438,2]
[350367256,1737815442996,-1508.47,0.00016438,2]
[350367258,1737815443005,-500.0,0.00016438,2]
[350367260,1737815443014,-210.725843,0.00016438,2]
[350367261,1737815443024,-4499.12,0.000165,2]
[350367262,1737815443033,-503.0,0.00016521,2]
[350367263,1737815443041,-500.0,0.00016574,2]
[350367264,1737815443050,-517.95532832,0.00016575,2]
[350367265,1737815443059,-500.0,0.00016575,2]
[350367266,1737815443067,-500.0,0.00016575,2]
[350367267,1737815443076,-500.0,0.00016575,2]
[350367268,1737815443085,-500.0,0.00016575,2]
[350367269,1737815443094,-355.84,0.00016575,2]
[350367270,1737815443103,-500.0,0.00016575,2]
[350367271,1737815443112,-599.23,0.00016575,2]
[350367272,1737815443121,-226.167393,0.00016575,2]
[350367273,1737815443132,-435.27,0.00016575,2]
[350367274,1737815443142,-180.12,0.00016575,2]
[350367275,1737815443151,-500.0,0.00016575,2]
[350367276,1737815443160,-438.379629,0.00016575,2]
[350367277,1737815443170,-512.26,0.00016575,2]
[350367278,1737815443179,-202.41,0.00016575,2]
[350367279,1737815443188,-220.14,0.00016575,2]
[350367280,1737815443197,-170.18,0.00016575,2]
[350367281,1737815443207,-167.32,0.00016575,2]
[350367282,1737815443216,-304.81,0.00016575,2]
[350367283,1737815443225,-500.0,0.00016575,2]
[350367284,1737815443235,-500.0,0.00016575,2]
[350367286,1737815443245,-500.0,0.00016575,2]
[350367288,1737815443254,-301.556525,0.00016575,2]
[350367289,1737815443263,-500.0,0.00016575,2]
[350367290,1737815443273,-500.0,0.00016575,2]
[350367291,1737815443282,-500.0,0.00016575,2]
[350367292,1737815443291,-500.0,0.00016575,2]
[350367293,1737815443300,-500.0,0.00016575,2]
[350367294,1737815443309,-500.0,0.00016575,2]
[350367295,1737815443319,-500.0,0.00016575,2]
[350367296,1737815443328,-763.46,0.00016575,2]
[350367297,1737815443337,-657.569444,0.00016575,2]
[350367299,1737815443346,-500.0,0.00016575,2]
[350367301,1737815443355,-500.0,0.00016575,2]
[350367302,1737815443365,-584.8,0.00016575,2]
[350367304,1737815443374,-500.0,0.00016575,2]
[350367307,1737815443383,-500.0,0.00016575,2]
[350367308,1737815443392,-500.0,0.00016575,2]
[350367310,1737815443401,-500.0,0.00016575,2]
[350367311,1737815443411,-500.0,0.00016575,2]
[350367312,1737815443420,-500.0,0.00016575,2]
[350367313,1737815443430,-500.0,0.00016575,2]
[350367314,1737815443439,-500.0,0.00016575,2]
[350367315,1737815443448,-500.0,0.00016575,2]
[350367316,1737815443457,-500.0,0.00016575,2]
[350367317,1737815443466,-1784.29,0.00016575,2]
[350367318,1737815443476,-527.723918,0.00016575,2]
[350367319,1737815443485,-500.0,0.00016575,2]
[350367320,1737815443494,-967.74,0.00016575,2]
[350367321,1737815443503,-500.0,0.00016575,2]
[350367322,1737815443513,-500.0,0.00016575,2]
[350367323,1737815443523,-500.0,0.00016575,2]
[350367324,1737815443533,-970.51,0.00016575,2]
[350367325,1737815443542,-500.0,0.00016575,2]
[350367326,1737815443552,-922.95,0.00016575,2]
[350367327,1737815443572,-822.39,0.00016575,2]
[350367328,1737815443592,-547.974536,0.00016575,2]
[350367329,1737815443613,-500.0,0.00016575,2]
[350367330,1737815443635,-513.91,0.00016575,2]
[350367331,1737815443655,-500.0,0.00016575,2]
[350367332,1737815443675,-567.66763793,0.00016575,2]
[350367333,1737815443696,-500.0,0.00016575,2]
[350367334,1737815443716,-500.0,0.00016575,2]
[350367335,1737815443736,-500.0,0.00016575,2]
[350367336,1737815443763,-1282.13,0.00016575,2]
[350367337,1737815443809,-2359.15,0.00016575,2]
[350367338,1737815443839,-500.0,0.00016575,2]
[350367339,1737815443848,-1575.49,0.00016575,2]
[350367340,1737815443858,-500.0,0.00016575,2]
[350367341,1737815443867,-500.0,0.00016575,2]
[350367342,1737815443876,-500.0,0.00016575,2]
[350367343,1737815443885,-500.0,0.00016575,2]
[350367344,1737815443894,-500.0,0.00016575,2]
[350367345,1737815443903,-500.0,0.00016575,2]
[350367346,1737815443913,-436.69,0.00016575,2]
[350367347,1737815443923,-500.0,0.00016575,2]
[350367348,1737815443932,-500.0,0.00016575,2]
[350367349,1737815443941,-226.167394,0.00016575,2]
[350367350,1737815443951,-500.0,0.00016575,2]
[350367351,1737815443961,-500.0,0.00016575,2]
[350367352,1737815443971,-500.0,0.00016575,2]
[350367353,1737815443981,-500.0,0.00016575,2]
[350367354,1737815443990,-614.06,0.00016575,2]
[350367355,1737815444000,-500.0,0.00016575,2]
[350367356,1737815444009,-500.0,0.00016575,2]
[350367357,1737815444018,-500.0,0.00016575,2]
[350367358,1737815444029,-500.0,0.00016575,2]
[350367359,1737815444040,-558.27,0.00016575,2]
[350367360,1737815444049,-500.0,0.00016575,2]
[350367361,1737815444058,-500.0,0.00016575,2]
[350367362,1737815444067,-1865.29,0.00016575,2]
[350367363,1737815444077,-640.62,0.00016575,2]
[350367364,1737815444086,-328.784721,0.00016575,2]
[350367365,1737815444095,-500.0,0.00016575,2]
[350367366,1737815444104,-754.97,0.00016575,2]
[350367367,1737815444113,-500.0,0.00016575,2]
[350367368,1737815444123,-500.0,0.00016575,2]
[350367369,1737815444132,-607.25,0.00016575,2]
[350367370,1737815444142,-500.0,0.00016575,2]
[350367371,1737815444151,-500.0,0.00016575,2]
[350367372,1737815444160,-500.0,0.00016575,2]
[350367373,1737815444170,-1238.12,0.00016575,2]
[350367374,1737815444180,-1671.13,0.00016575,2]
[350367375,1737815444189,-500.0,0.00016575,2]
[350367376,1737815444198,-747.01,0.00016575,2]
[350367377,1737815444207,-2482.07,0.00016575,2]
[350367378,1737815444216,-1414.32,0.00016575,2]
[350367379,1737815444225,-537.11,0.00016575,2]
[350367380,1737815444234,-500.0,0.00016575,2]
[350367381,1737815444284,-500.0,0.00016575,2]
[350367382,1737815444293,-500.0,0.00016575,2]
[350367383,1737815444302,-500.0,0.00016575,2]
[350367384,1737815444312,-500.0,0.00016575,2]
[350367385,1737815444321,-667.36,0.00016575,2]
[350367386,1737815444329,-500.0,0.00016575,2]
[350367387,1737815444338,-1211.55,0.00016575,2]
[350367388,1737815444347,-500.0,0.00016575,2]
[350367389,1737815444356,-500.0,0.00016575,2]
[350367390,1737815444366,-510.36,0.00016575,2]
[350367391,1737815444374,-500.0,0.00016575,2]
[350367392,1737815444383,-500.0,0.00016575,2]
[350367393,1737815444393,-500.0,0.00016575,2]
[350367394,1737815444402,-500.0,0.00016575,2]
[350367395,1737815444411,-500.0,0.00016575,2]
[350367396,1737815444420,-525.78,0.00016575,2]
[350367397,1737815444429,-500.0,0.00016575,2]
[350367398,1737815444438,-573.87,0.00016575,2]
[350367399,1737815444447,-500.0,0.00016575,2]
[350367400,1737815444455,-1073.09,0.00016575,2]
[350367401,1737815444464,-1787.93,0.00016575,2]
[350367402,1737815444473,-500.0,0.00016575,2]
[350367403,1737815444482,-619.29,0.00016575,2]
[350367404,1737815444491,-500.0,0.00016575,2]
[350367405,1737815444501,-500.0,0.00016575,2]
[350367406,1737815444510,-634.75,0.00016575,2]
[350367407,1737815444518,-500.0,0.00016575,2]
[350367408,1737815444528,-500.0,0.00016575,2]
[350367409,1737815444537,-500.0,0.00016575,2]
[350367410,1737815444546,-370.51,0.00016575,2]
[350367411,1737815444555,-500.0,0.00016575,2]
[350367412,1737815444565,-500.0,0.00016575,2]
[350367413,1737815444573,-500.0,0.00016575,2]
[350367414,1737815444583,-622.31,0.00016575,2]
[350367415,1737815444592,-500.0,0.00016575,2]
[350367416,1737815444601,-1731.58,0.00016575,2]
[350367417,1737815444610,-500.0,0.00016575,2]
[350367418,1737815444619,-1257.87,0.00016575,2]
[350367419,1737815444628,-574.68,0.00016575,2]
[350367420,1737815444637,-500.0,0.00016575,2]
[350367421,1737815444646,-500.0,0.00016575,2]
[350367422,1737815444655,-500.0,0.00016575,2]
[350367423,1737815444664,-898.6,0.00016575,2]
[350367424,1737815444674,-543.74,0.00016575,2]
[350367425,1737815444683,-500.0,0.00016575,2]
[350367426,1737815444694,-500.0,0.00016575,2]
[350367427,1737815444704,-500.0,0.00016575,2]
[350367428,1737815444713,-879.75,0.00016575,2]
[350367429,1737815444723,-500.0,0.00016575,2]
[350367430,1737815444732,-500.0,0.00016575,2]
[350367431,1737815444742,-500.0,0.00016575,2]
[350367432,1737815444751,-500.0,0.00016575,2]
[350367433,1737815444760,-500.0,0.00016575,2]
[350367434,1737815444771,-500.0,0.00016575,2]
[350367435,1737815444781,-843.9,0.00016575,2]
[350367436,1737815444790,-500.0,0.00016575,2]
[350367437,1737815444799,-1000.0,0.00016575,2]
[350367438,1737815444808,-500.0,0.00016575,2]
[350367439,1737815444817,-2189.12,0.00016575,2]
[350367440,1737815444827,-542.2,0.00016575,2]
[350367441,1737815444837,-705.19,0.00016575,2]
[350367442,1737815444846,-500.0,0.00016575,2]
[350367443,1737815444855,-500.0,0.00016575,2]
[350367444,1737815444864,-500.0,0.00016575,2]
[350367445,1737815444874,-751.55,0.00016575,2]
[350367446,1737815444883,-500.0,0.00016575,2]
[350367447,1737815444892,-500.0,0.00016575,2]
[350367448,1737815444902,-500.0,0.00016575,2]
[350367449,1737815444911,-2135.79,0.00016575,2]
[350367450,1737815444920,-500.0,0.00016575,2]
[350367451,1737815444929,-1508.47,0.00016575,2]
[350367452,1737815444938,-614.05082751,0.00016624,2]
[350367453,1737815444947,-1264.61,0.00016683,2]
[350367454,1737815444957,-1164.08,0.0001671,2]
[350367455,1737815444966,-500.0,0.00016711,2]
[350367456,1737815444975,-500.0,0.00016712,2]
[350367457,1737815444985,-500.0,0.00016712,2]
[350367458,1737815444994,-500.0,0.00016712,2]
[350367459,1737815445002,-500.0,0.00016712,2]
[350367460,1737815445012,-226.167393,0.00016712,2]
[350367461,1737815445022,-500.0,0.00016712,2]
[350367462,1737815445031,-438.379629,0.00016712,2]
[350367463,1737815445041,-500.0,0.00016712,2]
[350367464,1737815445050,-263.37,0.00016712,2]
[350367465,1737815445059,-500.0,0.00016712,2]
[350367466,1737815445068,-301.556525,0.00016712,2]
[350367467,1737815445078,-500.0,0.00016712,2]
[350367468,1737815445087,-500.0,0.00016712,2]
[350367469,1737815445096,-500.0,0.00016712,2]
[350367470,1737815445105,-500.0,0.00016712,2]
[350367471,1737815445114,-500.0,0.00016712,2]
[350367472,1737815445123,-500.0,0.00016712,2]
[350367473,1737815445132,-500.0,0.00016712,2]
[350367474,1737815445140,-763.46,0.00016712,2]
[350367475,1737815445149,-657.569444,0.00016712,2]
[350367476,1737815445158,-500.0,0.00016712,2]
[350367477,1737815445167,-478.16,0.00016712,2]
[350367478,1737815445176,-584.8,0.00016712,2]
[350367479,1737815445185,-158.70164,0.00016712,2]
[350367480,1737815445194,-500.0,0.00016712,2]
[350367481,1737815445202,-500.0,0.00016712,2]
[350367482,1737815445212,-500.0,0.00016712,2]
[350367483,1737815445221,-500.0,0.00016712,2]
[350367484,1737815445230,-500.0,0.00016712,2]
[350367485,1737815445239,-500.0,0.00016712,2]
[350367486,1737815445248,-500.0,0.00016712,2]
[350367487,1737815445257,-500.0,0.00016712,2]
[350367488,1737815445266,-500.0,0.00016712,2]
[350367489,1737815445276,-500.0,0.00016712,2]
[350367490,1737815445285,-1784.29,0.00016712,2]
[350367491,1737815445294,-527.723918,0.00016712,2]
[350367492,1737815445303,-500.0,0.00016712,2]
[350367493,1737815445311,-967.74,0.00016712,2]
[350367494,1737815445320,-500.0,0.00016712,2]
[350367495,1737815445330,-500.0,0.00016712,2]
[350367496,1737815445339,-500.0,0.00016712,2]
[350367497,1737815445348,-970.51,0.00016712,2]
[350367498,1737815445357,-922.95,0.00016712,2]
[350367499,1737815445366,-822.39,0.00016712,2]
[350367500,1737815445375,-547.974536,0.00016712,2]
[350367501,1737815445384,-500.0,0.00016712,2]
[350367502,1737815445393,-513.91,0.00016712,2]
[350367503,1737815445402,-500.0,0.00016712,2]
[350367504,1737815445411,-500.0,0.00016712,2]
[350367505,1737815445420,-500.0,0.00016712,2]
[350367506,1737815445429,-500.0,0.00016712,2]
[350367507,1737815445438,-1282.13,0.00016712,2]
[350367508,1737815445447,-2359.15,0.00016712,2]
[350367509,1737815445456,-1575.49,0.00016712,2]
[350367510,1737815445465,-500.0,0.00016712,2]
[350367511,1737815445474,-500.0,0.00016712,2]
[350367512,1737815445483,-500.0,0.00016712,2]
[350367513,1737815445492,-500.0,0.00016712,2]
[350367514,1737815445501,-500.0,0.00016712,2]
[350367515,1737815445510,-500.0,0.00016712,2]
[350367516,1737815445519,-500.0,0.00016712,2]
[350367517,1737815445530,-500.0,0.00016712,2]
[350367518,1737815445539,-226.167394,0.00016712,2]
[350367519,1737815445548,-500.0,0.00016712,2]
[350367520,1737815445558,-500.0,0.00016712,2]
[350367521,1737815445567,-500.0,0.00016712,2]
[350367522,1737815445576,-500.0,0.00016712,2]
[350367523,1737815445585,-614.06,0.00016712,2]
[350367524,1737815445594,-500.0,0.00016712,2]
[350367525,1737815445603,-500.0,0.00016712,2]
[350367526,1737815445612,-500.0,0.00016712,2]
[350367528,1737815445621,-500.0,0.00016712,2]
[350367530,1737815445631,-558.27,0.00016712,2]
[350367532,1737815445640,-511.68791256,0.00016712,2]
[350367534,1737815445650,-500.0,0.00016712,2]
[350367535,1737815445660,-640.62,0.00016712,2]
[350367536,1737815445670,-1865.29,0.00016712,2]
[350367537,1737815445680,-328.784721,0.00016712,2]
[350367538,1737815445689,-500.0,0.00016712,2]
[350367539,1737815445701,-754.97,0.00016712,2]
[350367540,1737815445711,-500.0,0.00016712,2]
[350367541,1737815445720,-500.0,0.00016712,2]
[350367542,1737815445731,-607.25,0.00016712,2]
[350367543,1737815445741,-500.0,0.00016712,2]
[350367544,1737815445751,-500.0,0.00016712,2]
[350367545,1737815445760,-500.0,0.00016712,2]
[350367546,1737815445770,-1238.12,0.00016712,2]
[350367547,1737815445781,-1671.13,0.00016712,2]
[350367548,1737815445791,-500.0,0.00016712,2]
[350367549,1737815445801,-747.01,0.00016712,2]
[350367550,1737815445810,-2482.07,0.00016712,2]
[350367551,1737815445821,-1414.32,0.00016712,2]
[350367552,1737815445831,-537.11,0.00016712,2]
[350367553,1737815445841,-500.0,0.00016712,2]
[350367554,1737815445851,-500.0,0.00016712,2]
[350367555,1737815445861,-500.0,0.00016712,2]
[350367556,1737815445871,-500.0,0.00016712,2]
[350367557,1737815445881,-188.472829,0.00016712,2]
[350367558,1737815445891,-500.0,0.00016712,2]
[350367559,1737815445901,-667.36,0.00016712,2]
[350367560,1737815445911,-500.0,0.00016712,2]
[350367561,1737815445920,-1211.55,0.00016712,2]
[350367562,1737815445930,-500.0,0.00016712,2]
[350367563,1737815445939,-500.0,0.00016712,2]
[350367564,1737815445949,-510.36,0.00016712,2]
[350367565,1737815445959,-500.0,0.00016712,2]
[350367566,1737815445970,-500.0,0.00016712,2]
[350367567,1737815445980,-500.0,0.00016712,2]
[350367568,1737815445990,-500.0,0.00016712,2]
[350367569,1737815445999,-500.0,0.00016712,2]
[350367570,1737815446009,-525.78,0.00016712,2]
[350367571,1737815446019,-500.0,0.00016712,2]
[350367572,1737815446029,-573.87,0.00016712,2]
[350367573,1737815446038,-500.0,0.00016712,2]
[350367574,1737815446047,-1073.09,0.00016712,2]
[350367575,1737815446058,-1787.93,0.00016712,2]
[350367576,1737815446067,-500.0,0.00016712,2]
[350367577,1737815446077,-619.29,0.00016712,2]
[350367578,1737815446087,-500.0,0.00016712,2]
[350367579,1737815446096,-500.0,0.00016712,2]
[350367580,1737815446106,-634.75,0.00016712,2]
[350367581,1737815446116,-500.0,0.00016712,2]
[350367582,1737815446126,-500.0,0.00016712,2]
[350367583,1737815446136,-500.0,0.00016712,2]
[350367584,1737815446145,-500.0,0.00016712,2]
[350367585,1737815446155,-500.0,0.00016712,2]
[350367586,1737815446165,-500.0,0.00016712,2]
[350367587,1737815446174,-622.31,0.00016712,2]
[350367588,1737815446184,-500.0,0.00016712,2]
[350367589,1737815446194,-1731.58,0.00016712,2]
[350367590,1737815446204,-500.0,0.00016712,2]
[350367591,1737815446214,-1257.87,0.00016712,2]
[350367592,1737815446224,-574.68,0.00016712,2]
[350367593,1737815446234,-500.0,0.00016712,2]
[350367594,1737815446243,-500.0,0.00016712,2]
[350367595,1737815446253,-500.0,0.00016712,2]
[350367596,1737815446263,-898.6,0.00016712,2]
[350367597,1737815446273,-543.74,0.00016712,2]
[350367599,1737815446283,-500.0,0.00016712,2]
[350367601,1737815446293,-500.0,0.00016712,2]
[350367602,1737815446303,-500.0,0.00016712,2]
[350367603,1737815446313,-879.75,0.00016712,2]
[350367605,1737815446323,-500.0,0.00016712,2]
[350367607,1737815446333,-500.0,0.00016712,2]
[350367608,1737815446342,-500.0,0.00016712,2]
[350367609,1737815446352,-500.0,0.00016712,2]
[350367610,1737815446362,-500.0,0.00016712,2]
[350367613,1737815446371,-500.0,0.00016712,2]
[350367615,1737815446381,-843.9,0.00016712,2]
[350367617,1737815446391,-500.0,0.00016712,2]
[350367619,1737815446401,-1000.0,0.00016712,2]
[350367620,1737815446411,-500.0,0.00016712,2]
[350367621,1737815446421,-2189.12,0.00016712,2]
[350367622,1737815446431,-542.2,0.00016712,2]
[350367623,1737815446441,-705.19,0.00016712,2]
[350367624,1737815446451,-500.0,0.00016712,2]
[350367625,1737815446461,-500.0,0.00016712,2]
[350367626,1737815446470,-751.55,0.00016712,2]
[350367627,1737815446480,-529.79783485,0.00016712,2]
[350367628,1737815446490,-500.0,0.00016712,2]
[350367629,1737815446499,-500.0,0.00016712,2]
[350367630,1737815446510,-457.1212573,0.00016712,2]
[350367631,1737815446520,-2135.79,0.00016712,2]
[350367632,1737815446531,-500.0,0.00016712,2]
[350367633,1737815446542,-322.0,0.00016795,2]
[350367634,1737815446551,-500.0,0.00016848,2]
[350367635,1737815446561,-500.0,0.00016849,2]
[350367636,1737815446570,-611.23,0.00016849,2]
[350367637,1737815446580,-500.0,0.00016849,2]
[350367638,1737815446590,-500.0,0.00016849,2]
[350367639,1737815446599,-226.167393,0.00016849,2]
[350367640,1737815446608,-500.0,0.00016849,2]
[350367641,1737815446618,-438.379629,0.00016849,2]
[350367642,1737815446627,-311.16,0.00016849,2]
[350367643,1737815446637,-500.0,0.00016849,2]
[350367644,1737815446646,-301.556525,0.00016849,2]
[350367645,1737815446656,-576.82,0.00016849,2]
[350367646,1737815446665,-500.0,0.00016849,2]
[350367647,1737815446675,-500.0,0.00016849,2]
[350367648,1737815446685,-500.0,0.00016849,2]
[350367649,1737815446698,-500.0,0.00016849,2]
[350367650,1737815446708,-500.0,0.00016849,2]
[350367651,1737815446718,-500.0,0.00016849,2]
[350367652,1737815446728,-763.46,0.00016849,2]
[350367653,1737815446741,-657.569444,0.00016849,2]
[350367654,1737815446751,-500.0,0.00016849,2]
[350367655,1737815446762,-584.8,0.00016849,2]
[350367656,1737815446775,-500.0,0.00016849,2]
[350367657,1737815446786,-500.0,0.00016849,2]
[350367658,1737815446797,-500.0,0.00016849,2]
[350367659,1737815446807,-500.0,0.00016849,2]
[350367660,1737815446817,-500.0,0.00016849,2]
[350367661,1737815446826,-500.0,0.00016849,2]
[350367662,1737815446836,-500.0,0.00016849,2]
[350367663,1737815446846,-500.0,0.00016849,2]
[350367664,1737815446857,-500.0,0.00016849,2]
[350367665,1737815446868,-500.0,0.00016849,2]
[350367666,1737815446880,-1784.29,0.00016849,2]
[350367667,1737815446891,-527.723918,0.00016849,2]
[350367668,1737815446902,-500.0,0.00016849,2]
[350367669,1737815446913,-967.74,0.00016849,2]
[350367670,1737815446924,-500.0,0.00016849,2]
[350367671,1737815446935,-500.0,0.00016849,2]
[350367672,1737815446946,-500.0,0.00016849,2]
[350367673,1737815446957,-970.51,0.00016849,2]
[350367674,1737815446969,-922.95,0.00016849,2]
[350367675,1737815446979,-822.39,0.00016849,2]
[350367676,1737815446990,-547.974536,0.00016849,2]
[350367677,1737815447001,-500.0,0.00016849,2]
[350367678,1737815447011,-513.91,0.00016849,2]
[350367679,1737815447022,-500.0,0.00016849,2]
[350367680,1737815447032,-500.0,0.00016849,2]
[350367681,1737815447042,-500.0,0.00016849,2]
[350367682,1737815447052,-1282.13,0.00016849,2]
[350367683,1737815447063,-2359.15,0.00016849,2]
[350367684,1737815447075,-1575.49,0.00016849,2]
[350367685,1737815447085,-500.0,0.00016849,2]
[350367686,1737815447096,-500.0,0.00016849,2]
[350367687,1737815447106,-500.0,0.00016849,2]
[350367688,1737815447117,-500.0,0.00016849,2]
[350367689,1737815447128,-500.0,0.00016849,2]
[350367690,1737815447138,-500.0,0.00016849,2]
[350367691,1737815447148,-500.0,0.00016849,2]
[350367692,1737815447158,-500.0,0.00016849,2]
[350367693,1737815447169,-226.167394,0.00016849,2]
[350367694,1737815447179,-500.0,0.00016849,2]
[350367695,1737815447190,-500.0,0.00016849,2]
[350367696,1737815447200,-500.0,0.00016849,2]
[350367697,1737815447211,-614.06,0.00016849,2]
[350367698,1737815447220,-500.0,0.00016849,2]
[350367699,1737815447231,-500.0,0.00016849,2]
[350367700,1737815447243,-500.0,0.00016849,2]
[350367701,1737815447253,-500.0,0.00016849,2]
[350367702,1737815447263,-558.27,0.00016849,2]
[350367703,1737815447275,-500.0,0.00016849,2]